bitfinex/quotes_ETHUSD_20250625
["timestamp","ask_amount","ask_price","bid_price","bid_amount"]
[1750884552792,4.11125362,2432.4,2431.6,0.2056]
[1750884552793,1.713,2432.6,2431.6,4.1125185]
[1750884552992,1.713,2432.6,2431.5,8.54320194]
[1750884552993,0.2048,2432.4,2431.9,0.2048]
[1750884553166,0.2048,2432.4,2432.3,4.11133495]
[1750884553568,0.2048,2432.4,2432.1,4.11158134]
[1750884553900,1.06298,2432.4,2431.9,4.31674789]
[1750884554196,1.06298,2432.4,2432.0,4.11170604]
[1750884554372,1.06298,2432.4,2432.1,4.11162039]
[1750884554568,0.2048,2432.4,2431.9,0.2048]
[1750884554773,0.2048,2432.4,2431.9,4.31668571]
[1750884554973,0.2048,2432.4,2432.1,4.1116304]
[1750884555176,0.2048,2432.4,2432.3,4.11133495]
[1750884555472,1.9178,2432.6,2432.3,4.9443183]
[1750884555889,6.663,2432.8,2432.5,4.11099691]
[1750884556089,6.8678,2432.8,2432.5,4.11099691]
[1750884556474,0.2048,2432.8,2432.5,4.11086377]
[1750884556705,0.2048,2432.8,2432.5,4.11088798]
[1750884556996,0.2048,2432.8,2432.4,4.31587401]
[1750884557322,4.111329,2432.4,2432.0,0.833]
[1750884557501,6.662,2432.4,2432.0,4.1117328]
[1750884558205,10.77319175,2432.4,2431.9,4.1119535]
[1750884558697,4.11134515,2432.3,2431.8,4.87115827]
[1750884558901,6.662,2432.4,2431.8,1.657354]
[1750884559117,8.54320194,2432.2,2431.5,0.76]
[1750884559289,4.11175892,2432.1,2431.6,4.11248734]
[1750884559485,6.668,2432.0,2431.7,4.11232734]
[1750884559988,10.77987545,2432.0,2431.5,4.8726564]
[1750884560305,6.668,2432.0,2431.6,4.11250253]
[1750884560610,4.11211843,2431.9,2431.5,1.65854666]
[1750884560776,4.11201118,2431.9,2431.5,0.76]
[1750884561428,4.11226632,2431.8,2431.3,4.11294501]
[1750884561786,6.668,2432.0,2431.2,1.63100254]
[1750884562096,4.11252942,2431.6,2431.2,1.63100254]
[1750884562296,4.11246941,2431.7,2431.2,5.74418246]
[1750884562921,4.11259959,2431.6,2431.2,1.63100254]
[1750884563232,6.668,2432.0,2431.2,1.63100254]
[1750884563515,4.1126106,2431.6,2431.2,0.7878]
[1750884564297,4.11243545,2431.7,2431.2,4.90099498]
[1750884565211,4.11227403,2431.8,2431.3,4.1130186]
[1750884565386,5.19005114,2431.9,2431.2,0.7878]
[1750884565387,1.0779758,2431.9,2431.2,0.7878]
[1750884565588,4.11178459,2432.1,2431.3,0.7586]
[1750884565917,2.48932898,2432.1,2431.3,0.7586]
[1750884566089,4.11211941,2431.9,2431.4,4.11275022]
[1750884566486,4.11167303,2432.1,2431.3,0.7586]
[1750884566695,4.11251383,2431.7,2431.3,0.7586]
[1750884567204,4.11259797,2431.6,2431.1,6.58223056]
[1750884567516,4.11259797,2431.6,2431.3,0.2056]
[1750884567720,4.31806061,2431.7,2431.3,0.2056]
[1750884567910,4.11252928,2431.6,2431.3,0.2056]
[1750884569906,4.11273527,2431.5,2431.3,0.2056]
[1750884570100,4.31804323,2431.7,2431.3,0.2056]
[1750884570301,10.0,2432.1,2431.1,0.7559]
[1750884570525,4.31836551,2431.5,2431.1,0.9615]
[1750884571026,0.2056,2431.5,2431.1,5.07484071]
[1750884571430,4.31830144,2431.5,2431.1,0.9615]
[1750884572829,0.2056,2431.5,2431.1,5.07484629]
[1750884573426,0.2056,2431.5,2431.3,4.11289417]
[1750884573802,0.2056,2431.5,2431.1,5.07476828]
[1750884574000,1.36715328,2431.5,2430.8,0.7959]
[1750884574337,1.36715328,2431.5,2430.6,0.41175986]
[1750884574338,4.11404122,2430.7,2430.6,0.41175986]
[1750884574708,4.11404122,2430.7,2430.2,4.91070323]
[1750884575018,4.11395833,2430.8,2430.3,4.11469361]
[1750884575196,10.0,2430.9,2430.5,4.11428783]
[1750884575399,6.682,2430.8,2430.4,4.11447342]
[1750884575828,6.682,2430.8,2430.5,4.11437709]
[1750884576233,6.682,2430.8,2430.2,0.7959]
[1750884576443,10.0,2430.9,2430.3,0.4910895]
[1750884576733,10.0,2430.9,2430.6,4.11410028]
[1750884577136,11.91272672,2431.5,2430.6,4.11410729]
[1750884577137,10.0,2431.4,2430.6,4.11410729]
[1750884577303,10.0,2431.4,2430.4,0.8055]
[1750884577304,6.683,2431.1,2430.4,0.8055]
[1750884577502,6.683,2431.1,2430.8,4.11379263]
[1750884578039,6.683,2431.1,2430.5,4.65544759]
[1750884578330,10.79651332,2431.1,2430.6,4.11421048]
[1750884578637,6.683,2431.1,2430.6,4.11421048]
[1750884578832,6.683,2431.1,2430.7,4.11402035]
[1750884579234,6.683,2431.1,2430.9,4.11362073]
[1750884579439,6.683,2431.1,2430.3,4.6056975]
[1750884579440,7.8,2431.5,2430.7,0.7654]
[1750884579624,18.402,2431.4,2431.0,4.11349897]
[1750884581735,22.51485869,2431.4,2430.9,4.11360875]
[1750884582933,4.11303739,2431.3,2430.8,4.11380421]
[1750884583106,4.11347806,2431.1,2430.7,0.7654]
[1750884583308,4.11350825,2431.1,2430.5,4.89554749]
[1750884583511,10.79850825,2431.1,2430.5,5.43421119]
[1750884583709,10.79850825,2431.1,2430.6,4.11405412]
[1750884583920,6.685,2431.1,2430.7,4.11403563]
[1750884584121,0.2056,2431.0,2430.7,4.11403563]
[1750884587537,0.2056,2431.0,2430.8,4.11383676]
[1750884587722,6.685,2431.1,2430.9,4.11362097]
[1750884587922,6.685,2431.1,2430.8,4.11379803]
[1750884588317,6.685,2431.1,2430.7,0.2056]
[1750884588536,6.685,2431.1,2430.7,4.31951954]
[1750884588743,6.685,2431.1,2430.8,4.11386645]
[1750884589243,6.685,2431.1,2430.7,4.3195685]
[1750884589457,6.685,2431.1,2430.7,5.29495877]
[1750884589736,0.2056,2431.2,2430.9,4.11369754]
[1750884589938,6.8906,2431.2,2430.8,4.11377867]
[1750884592353,6.8906,2431.2,2430.7,1.18096611]
[1750884592645,6.8906,2431.2,2430.9,4.11369734]
[1750884592842,6.8906,2431.2,2431.0,4.11341806]
[1750884593343,6.8906,2431.2,2430.9,4.9013349]
[1750884593546,6.8906,2431.2,2431.0,4.11352745]
[1750884594052,6.8906,2431.2,2430.9,0.7877]
[1750884594053,10.0,2431.4,2430.9,0.7877]
[1750884594214,0.2056,2431.4,2431.3,4.11302595]
[1750884595747,4.31861627,2431.4,2431.0,0.49014493]
[1750884597935,8.52406071,2431.4,2430.7,0.8192]
[1750884598138,8.52406071,2431.4,2430.8,0.2056]
[1750884598139,4.11345949,2431.1,2430.8,0.2056]
[1750884599343,6.8886,2431.2,2430.8,0.2056]
[1750884599544,0.2056,2431.2,2430.8,4.75133322]
[1750884599747,6.8886,2431.2,2430.8,4.75133322]
[1750884599944,10.79631454,2431.2,2430.8,0.63756219]
[1750884600147,0.2056,2431.1,2430.6,4.31977225]
[1750884600354,4.11354431,2431.0,2430.6,0.2056]
[1750884600518,0.2056,2431.1,2430.6,0.2056]
[1750884600720,4.11384577,2430.9,2430.6,0.2056]
[1750884600920,4.11360807,2431.0,2430.6,0.2056]
[1750884601348,0.2056,2431.1,2430.7,4.11404122]
[1750884601722,6.681,2431.1,2430.9,0.8136]
[1750884601951,6.681,2431.1,2431.0,4.11353352]
[1750884602151,6.681,2431.1,2430.9,4.92722084]
[1750884602368,6.681,2431.1,2430.9,4.92722131]
[1750884602556,6.681,2431.1,2430.9,1.73826189]
[1750884602755,6.681,2431.1,2430.9,5.85194627]
[1750884603342,0.2056,2431.2,2430.9,1.73826189]
[1750884603531,1.717,2431.3,2431.0,4.11339595]
[1750884604352,1.717,2431.3,2430.9,5.13282533]
[1750884604551,1.717,2431.3,2430.9,1.0192]
[1750884604863,1.717,2431.3,2431.0,4.11344671]
[1750884605860,6.8866,2431.4,2431.0,4.11344671]
[1750884606058,10.99952001,2431.4,2430.9,1.0192]
[1750884606255,6.8866,2431.4,2430.9,1.53251111]
[1750884606451,10.99947816,2431.4,2430.9,5.64612487]
[1750884606760,10.99947816,2431.4,2431.0,4.1135261]
[1750884607062,6.8866,2431.4,2431.1,4.11331511]
[1750884607239,10.99959171,2431.4,2430.9,5.64612885]
[1750884607640,6.8866,2431.4,2431.0,4.67811941]
[1750884608855,6.8866,2431.4,2431.0,0.56461289]
[1750884609026,10.99949345,2431.4,2431.0,0.56461289]
[1750884609879,10.99949345,2431.4,2430.9,5.13281242]
[1750884610867,4.11310551,2431.3,2430.9,1.0192]
[1750884611047,10.99957432,2431.4,2430.9,5.13289289]
[1750884611371,10.99957432,2431.4,2430.9,4.31929289]
[1750884612081,4.11312405,2431.3,2430.7,4.88082313]
[1750884612233,4.11312405,2431.3,2430.5,0.771]
[1750884612234,6.91564973,2431.2,2430.5,0.771]
[1750884612573,6.91564973,2431.2,2430.7,4.11388043]
[1750884612574,0.2056,2431.0,2430.7,4.11388043]
[1750884613850,0.2056,2431.0,2430.9,4.11370274]
[1750884614057,0.2056,2431.0,2430.7,4.11399577]
[1750884614058,6.68,2431.1,2430.8,4.31938424]
[1750884614243,6.68,2431.1,2430.8,0.2056]
[1750884614879,6.68,2431.1,2430.5,0.771]
[1750884615175,0.2056,2431.0,2430.6,4.31980299]
[1750884615678,0.2056,2431.0,2430.6,0.2056]
[1750884615879,0.2056,2431.0,2430.6,4.31974506]
[1750884616083,0.2056,2431.0,2430.7,4.11389984]
[1750884616656,0.2056,2431.0,2430.8,4.11386855]
[1750884616855,0.2056,2431.0,2430.6,0.2056]
[1750884616856,1.723,2431.6,2431.0,0.7957]
[1750884617054,11.723,2431.6,2431.3,4.11300607]
[1750884617472,11.723,2431.6,2431.2,4.3187643]
[1750884617662,11.723,2431.6,2431.2,4.31877909]
[1750884618342,15.83556112,2431.6,2431.2,0.2056]
[1750884618778,22.51556112,2431.6,2431.2,0.2056]
[1750884619347,22.51556112,2431.6,2431.2,4.31879157]
[1750884619348,18.403,2431.6,2431.2,4.31879157]
[1750884620368,18.403,2431.6,2431.2,5.24158667]
[1750884620964,10.98359593,2431.5,2430.7,0.7953]
[1750884621265,4.11297759,2431.4,2430.8,4.11376401]
[1750884621470,10.79010606,2431.3,2430.8,4.11376401]
[1750884622549,6.677,2431.3,2430.8,4.11380616]
[1750884622768,6.677,2431.3,2430.9,4.11362833]
[1750884623090,6.677,2431.3,2430.9,5.01590836]
[1750884624045,6.677,2431.3,2431.0,4.11350979]
[1750884624578,6.677,2431.3,2430.9,5.0158982]
[1750884625082,6.677,2431.3,2431.0,4.1135153]
[1750884625251,6.677,2431.3,2430.9,0.90228003]
[1750884625451,6.677,2431.3,2430.9,5.01586981]
[1750884626080,10.79003074,2431.3,2430.9,0.90228003]
[1750884626803,10.79003074,2431.3,2430.7,4.90929574]
[1750884626804,4.11328245,2431.2,2430.7,4.11395038]
[1750884627099,4.11336593,2431.1,2430.7,4.11395038]
[1750884627506,4.11336593,2431.1,2430.6,4.11409802]
[1750884628254,6.677,2431.3,2430.8,4.11386422]
[1750884628558,10.79004763,2431.3,2430.9,4.11362201]
[1750884628775,12.96739815,2431.3,2430.9,4.11362201]
[1750884629285,8.85435052,2431.3,2430.9,4.11362201]
[1750884629672,6.677,2431.3,2430.5,1.2398476]
[1750884629987,10.79011123,2431.3,2430.8,4.11380096]
[1750884630892,10.79011123,2431.3,2430.8,4.31940096]
[1750884631181,0.2056,2431.2,2430.8,4.31940096]
[1750884631383,4.31883019,2431.2,2430.8,4.31940096]
[1750884631862,4.31883019,2431.2,2430.8,0.2056]
[1750884632862,11.51089414,2431.2,2430.0,4.67008092]
[1750884633079,4.31944544,2430.9,2430.4,0.2056]
[1750884633468,4.11402239,2430.8,2430.4,0.2056]
[1750884633873,4.11447373,2430.5,2430.0,4.89181184]
[1750884634078,1.28494737,2430.5,2430.1,4.32063535]
[1750884634358,0.2056,2430.5,2430.3,4.11460043]
[1750884634568,0.2056,2430.5,2430.4,4.11454904]
[1750884635165,0.98411399,2431.0,2430.3,5.09199254]
[1750884635368,0.2056,2431.0,2430.8,4.11375059]
[1750884635789,0.2056,2431.0,2430.9,4.11370274]
[1750884636085,0.2056,2431.0,2430.8,4.11379118]
[1750884636455,0.2056,2431.0,2430.7,4.11394899]
[1750884636672,0.2056,2431.0,2430.6,4.11413147]
[1750884636987,0.2056,2431.0,2430.5,0.2056]
[1750884636988,4.1137142,2430.9,2430.5,0.2056]
[1750884637203,0.2056,2430.8,2430.3,0.2056]
[1750884637525,0.2056,2430.6,2430.3,4.11462955]
[1750884637684,4.31988892,2430.6,2430.1,5.10114353]
[1750884637886,4.31988892,2430.6,2430.1,0.2056]
[1750884637887,4.11440837,2430.5,2430.1,0.2056]
[1750884641110,1.66319044,2430.5,2430.1,0.2056]
[1750884641261,4.11505699,2430.1,2430.0,0.005]
[1750884641464,6.686,2430.3,2430.0,0.005]
[1750884641772,6.686,2430.3,2430.0,4.12015774]
[1750884642087,0.2056,2430.1,2430.0,4.12015774]
[1750884642283,6.686,2430.3,2430.0,4.94370598]
[1750884642464,6.687,2430.3,2430.0,5.74190648]
[1750884642659,6.687,2430.3,2430.0,0.005]
[1750884642865,0.2056,2430.2,2430.0,0.005]
[1750884643959,0.2056,2430.2,2430.0,4.12022603]
[1750884645066,6.687,2430.3,2430.1,4.11505699]
[1750884645268,6.8926,2430.3,2430.1,4.11505699]
[1750884645904,6.8926,2430.3,2430.0,4.1201471]
[1750884646201,6.8926,2430.3,2430.0,4.12021311]
[1750884646599,6.8926,2430.3,2430.2,4.11488766]
[1750884646764,6.8926,2430.3,2430.1,4.11499469]
[1750884647176,6.8926,2430.3,2430.0,0.005]
[1750884647885,8.96022465,2430.3,2430.0,0.005]
[1750884648089,0.2056,2430.2,2430.0,0.005]
[1750884648675,4.11505699,2430.1,2430.0,0.005]
[1750884648878,0.2056,2430.2,2430.0,0.005]
[1750884651399,0.2056,2430.2,2430.0,4.12021968]
[1750884651698,0.2056,2430.2,2430.0,0.005]
[1750884652801,0.2056,2430.2,2430.0,4.12018638]
[1750884652967,0.2056,2430.2,2430.0,0.005]
[1750884653169,0.2056,2430.2,2430.0,4.12012296]
[1750884653368,0.2056,2430.2,2430.1,4.11505699]
[1750884653598,10.0,2430.7,2430.1,5.02018499]
[1750884653797,1.9306,2430.4,2430.2,4.11482231]
[1750884654005,6.68,2430.3,2430.2,4.11482231]
[1750884655405,18.6106,2430.4,2430.3,4.11471834]
[1750884655694,18.6106,2430.4,2430.2,4.11481381]
[1750884656099,18.6106,2430.4,2430.1,4.11493788]
[1750884657001,18.6106,2430.4,2430.0,4.32576823]
[1750884657177,22.72518796,2430.4,2430.0,0.2106]
[1750884657597,18.405,2430.4,2430.0,4.12016325]
[1750884657796,0.2056,2430.2,2430.0,4.12016325]
[1750884658201,0.2056,2430.2,2430.1,4.11505699]
[1750884658880,0.2056,2430.2,2430.0,4.12013356]
[1750884659500,0.2056,2430.2,2430.1,4.11505699]
[1750884659821,18.405,2430.4,2430.2,4.11479017]
[1750884660114,18.6106,2430.4,2430.2,4.11479017]
[1750884660286,18.6106,2430.4,2430.2,4.11486762]
[1750884660490,0.2056,2430.4,2430.3,4.11471834]
[1750884660813,6.8856,2430.4,2430.3,4.11471834]
[1750884662017,0.2056,2430.4,2430.3,4.11471834]
[1750884662381,1.725,2430.6,2430.5,4.11437975]
[1750884662599,6.679,2430.7,2430.6,4.11421048]
[1750884663087,0.2056,2430.9,2430.8,4.11387197]
[1750884663408,8.6116,2431.0,2430.6,4.31971973]
[1750884663591,0.2056,2430.9,2430.5,4.11429731]
[1750884663912,6.8876,2430.9,2430.5,4.11429731]
[1750884664214,4.31931246,2430.9,2430.4,5.0940765]
[1750884664378,6.8876,2430.9,2430.4,1.56884815]
[1750884664583,6.8876,2430.9,2430.8,4.11387197]
[1750884664808,6.8876,2430.9,2430.7,4.11392934]
[1750884665513,6.8876,2430.9,2430.8,4.11387197]
[1750884666699,6.8876,2430.9,2430.7,4.11394614]
[1750884667924,6.8876,2430.9,2430.8,4.11387197]
[1750884668085,6.8876,2430.9,2430.7,4.1139572]
[1750884668511,6.8876,2430.9,2430.6,4.11412719]
[1750884668697,6.8876,2430.9,2430.6,5.03493788]
[1750884670323,6.8876,2430.9,2430.7,4.11404001]
[1750884670526,6.8876,2430.9,2430.6,5.03495322]
[1750884670682,0.2056,2430.9,2430.6,5.03495322]
[1750884671617,0.2056,2430.9,2430.7,4.11390847]
[1750884671920,0.2056,2430.9,2430.6,5.03493209]
[1750884672818,0.2056,2430.9,2430.7,4.11391722]
[1750884673826,0.2056,2430.9,2430.6,5.03499916]
[1750884674526,0.2056,2430.9,2430.6,0.92081069]
[1750884674701,0.2056,2430.9,2430.6,5.03493977]
[1750884674893,0.2056,2430.9,2430.7,0.91493169]
[1750884676028,0.2056,2430.9,2430.8,4.94097197]
[1750884676215,4.31262252,2432.4,2431.4,4.1128539]
[1750884676216,1.72,2431.6,2431.4,4.1128539]
[1750884676422,8.394,2431.6,2431.0,0.8271]
[1750884676723,12.50660666,2431.6,2431.1,4.11336165]
[1750884677294,6.678,2431.5,2431.2,4.11305129]
[1750884677588,1.72,2431.6,2431.2,4.11305129]
[1750884677793,6.677,2431.5,2431.1,4.11328957]
[1750884678393,6.677,2431.5,2431.0,1.32117024]
[1750884678595,6.677,2431.5,2431.1,4.11336053]
[1750884679426,6.677,2431.5,2431.2,4.11318803]
[1750884679625,6.678,2431.5,2431.3,4.11295306]
[1750884680724,1.72,2432.0,2431.4,0.7957]
[1750884681022,6.677,2431.9,2431.7,4.11233143]
[1750884681430,1.72,2432.0,2431.7,4.11233143]
[1750884681627,6.681,2431.9,2431.7,4.11233143]
[1750884681814,1.72,2432.0,2431.8,4.11209567]
[1750884682322,1.72,2432.0,2431.9,4.11201118]
[1750884683236,1.72,2432.0,2431.8,4.11210933]
[1750884683417,1.72,2432.0,2431.4,4.90850378]
[1750884683617,1.72,2432.0,2431.9,4.11201118]
[1750884684138,1.72,2432.0,2431.8,4.11213908]
[1750884684503,1.72,2432.0,2431.7,4.11227416]
[1750884684699,1.72,2432.0,2431.7,4.85923216]
[1750884685104,1.72,2432.0,2431.8,4.11201495]
[1750884686028,1.72,2432.0,2431.7,4.85923547]
[1750884686238,1.72,2432.0,2431.7,5.06483547]
[1750884686718,1.72,2432.0,2431.7,0.952558]
[1750884688331,1.72,2432.0,2431.7,5.06482906]
[1750884688536,1.72,2432.0,2431.7,0.952558]
[1750884688537,4.11208675,2431.9,2431.7,0.952558]
[1750884688746,5.83191134,2432.0,2431.7,0.2056]
[1750884690117,1.72,2432.0,2431.7,0.2056]
[1750884692343,5.8318767,2432.0,2431.7,0.2056]
[1750884692939,4.11202223,2431.9,2431.4,4.90846517]
[1750884693144,0.2056,2431.9,2431.5,4.31827246]
[1750884693313,0.2056,2431.9,2431.5,5.2409539]
[1750884694140,0.2056,2431.9,2431.6,4.11249991]
[1750884694343,0.2056,2431.9,2431.5,5.24091631]
[1750884694646,0.2056,2431.9,2431.5,1.12828144]
[1750884694820,0.2056,2431.9,2431.6,4.11243065]
[1750884695021,0.2056,2431.9,2431.6,5.12734633]
[1750884695424,0.2056,2431.9,2431.7,4.11232214]
[1750884695613,8.394,2432.2,2431.8,4.11204392]
[1750884695812,8.5988,2432.2,2431.8,4.11203068]
[1750884696012,8.5988,2432.2,2431.9,4.11197901]
[1750884696334,8.5988,2432.2,2432.0,4.11180381]
[1750884698354,8.5988,2432.2,2431.9,4.11193346]
[1750884699437,8.5988,2432.2,2432.0,4.11184098]
[1750884699614,8.5988,2432.2,2431.9,4.11193037]
[1750884701741,8.5988,2432.2,2431.8,4.11208215]
[1750884701911,8.5988,2432.2,2431.8,5.13704677]
[1750884702644,12.71032058,2432.2,2431.8,5.13704677]
[1750884702847,12.71032058,2432.2,2431.8,1.02496462]
[1750884703240,4.11168957,2432.1,2431.8,1.02496462]
[1750884703446,4.11217065,2431.9,2431.7,0.2056]
[1750884703661,8.52827674,2432.1,2431.4,0.7828]
[1750884703860,4.11235336,2431.7,2431.5,0.2056]
[1750884704736,6.673,2431.8,2431.5,0.2056]
[1750884706254,6.673,2431.8,2431.5,4.31827071]
[1750884707361,6.673,2431.8,2431.5,0.2056]
[1750884707849,6.673,2431.8,2431.5,4.3181631]
[1750884708429,6.673,2431.8,2431.5,0.2056]
[1750884708961,6.673,2431.8,2431.5,4.31825874]
[1750884709162,6.673,2431.8,2431.5,0.2056]
[1750884709661,6.673,2431.8,2431.6,4.11250442]
[1750884709862,10.78520027,2431.8,2431.5,0.2056]
[1750884710535,6.673,2431.8,2431.4,4.89559862]
[1750884710729,0.2056,2431.7,2431.4,4.89559862]
[1750884711065,0.2056,2431.7,2431.4,1.70421253]
[1750884711273,0.2056,2431.7,2431.5,4.11254142]
[1750884711562,6.668,2431.7,2431.6,4.1125185]
[1750884712061,0.2056,2431.9,2431.6,4.1125185]
[1750884712362,6.668,2431.8,2431.6,4.11242064]
[1750884713077,6.668,2431.8,2431.7,4.11234938]
[1750884714164,6.668,2431.8,2431.6,4.11243397]
[1750884714861,6.668,2431.8,2431.6,4.11239895]
[1750884715045,6.668,2431.8,2431.6,5.033743]
[1750884715750,6.668,2431.8,2431.7,4.11234938]
[1750884715953,6.668,2432.0,2431.7,4.11234938]
[1750884716243,6.668,2432.0,2431.6,0.92134405]
[1750884716244,6.668,2432.0,2431.6,5.23934398]
[1750884716644,6.668,2432.0,2431.6,5.23938845]
[1750884717037,10.77987769,2432.0,2431.6,4.31809047]
[1750884717238,6.668,2432.0,2431.6,4.31809047]
[1750884717570,6.668,2432.0,2431.6,4.31803569]
[1750884718539,10.77986706,2432.0,2431.6,4.11243569]
[1750884718732,0.2056,2431.9,2431.5,4.11260133]
[1750884719373,0.2056,2431.9,2431.6,4.11249949]
[1750884719550,0.2056,2431.9,2431.7,4.11233004]
[1750884719937,0.2056,2431.9,2431.7,4.11230066]
[1750884720154,0.2056,2431.9,2431.5,4.11264188]
[1750884720354,4.11219319,2431.8,2431.4,5.10120318]
[1750884720567,0.2056,2431.9,2431.6,4.11239401]
[1750884722764,0.2056,2431.9,2431.7,4.11234638]
[1750884722966,0.2056,2431.9,2431.5,4.11267284]
[1750884723147,0.2056,2431.9,2431.6,4.11248147]
[1750884724265,0.2056,2431.9,2431.6,4.11243862]
[1750884726670,0.2056,2431.9,2431.7,4.11233368]
[1750884728485,0.2056,2431.9,2431.6,4.1124264]
[1750884729144,0.2056,2431.9,2431.7,4.11231489]
[1750884731053,0.2056,2431.9,2431.6,4.11248436]
[1750884731981,0.2056,2431.9,2431.5,4.11258867]
[1750884732369,0.2056,2431.9,2431.6,4.11249843]
[1750884733477,0.2056,2431.9,2431.7,4.11226923]
[1750884733977,0.2056,2431.9,2431.6,4.11243375]
[1750884734165,0.2056,2431.9,2431.7,4.11232477]
[1750884735077,0.2056,2431.9,2431.6,4.11242481]
[1750884735982,0.2056,2431.9,2431.7,4.11233903]
[1750884736884,0.2056,2431.9,2431.5,4.11261481]
[1750884736885,0.2056,2431.9,2431.6,4.11242623]
[1750884737266,0.2056,2431.9,2431.4,0.2056]
[1750884737579,0.2056,2431.9,2431.6,4.94292194]
[1750884739389,4.31762933,2431.9,2431.4,4.31840555]
[1750884739691,4.11219701,2431.8,2431.4,4.31840555]
[1750884740003,4.11219701,2431.8,2431.4,0.2056]
[1750884740197,4.31773982,2431.9,2431.4,4.31836596]
[1750884740406,4.31773982,2431.9,2431.4,5.23954567]
[1750884740608,4.11220169,2431.8,2431.4,1.12677971]
[1750884741311,0.2056,2431.9,2431.4,5.23955955]
[1750884741500,4.3176972,2431.9,2431.5,4.11268007]
[1750884741810,0.2056,2431.9,2431.5,4.11268007]
[1750884741993,0.2056,2431.9,2431.6,4.89300565]
[1750884743710,0.2056,2431.9,2431.7,4.1122707]
[1750884744413,12.69849851,2432.1,2431.7,4.31787291]
[1750884744612,4.31649851,2432.1,2431.7,0.2056]
[1750884744811,4.11190854,2432.0,2431.7,0.2056]
[1750884746911,10.98354734,2432.1,2431.7,0.2056]
[1750884747299,6.8718,2432.1,2431.7,4.92128537]
[1750884747483,10.98349758,2432.1,2431.7,0.80898302]
[1750884747828,10.98356531,2432.1,2431.7,0.80898302]
[1750884748109,10.98356531,2432.1,2431.7,4.31793413]
[1750884748299,6.8718,2432.1,2431.7,4.31793413]
[1750884751433,6.666,2432.0,2431.7,4.31793413]
[1750884751734,6.666,2432.0,2431.8,4.11216023]
[1750884754328,0.2048,2432.1,2431.8,4.11216023]
[1750884754528,6.666,2432.0,2431.8,4.11216023]
[1750884759116,6.666,2432.0,2431.8,4.11218027]
[1750884759323,1.715,2432.8,2432.3,4.11119079]
[1750884759522,0.2048,2432.5,2432.3,4.11122811]
[1750884761818,0.2048,2432.5,2432.4,4.11116592]
[1750884764422,1.715,2432.8,2432.7,4.11065893]
[1750884764811,8.52827674,2433.6,2432.6,4.92250687]
[1750884764812,0.2048,2433.1,2432.8,4.1104711]
[1750884765013,0.2048,2433.1,2433.0,4.11015207]
[1750884765211,0.2048,2433.4,2433.0,4.11015207]
[1750884765410,8.5828,2433.6,2433.0,4.11009159]
[1750884765611,8.5828,2433.6,2433.1,4.31464204]
[1750884765820,8.5828,2433.6,2433.2,4.10973762]
[1750884766127,9.44108,2433.6,2433.2,4.10973762]
[1750884766298,9.44108,2433.6,2433.1,0.2048]
[1750884766998,13.55027836,2433.6,2433.1,4.31478055]
[1750884768323,6.664,2433.5,2433.2,4.10977446]
[1750884768502,6.664,2433.5,2433.1,0.2048]
[1750884768893,10.77332101,2433.5,2433.1,0.2048]
[1750884769098,6.664,2433.5,2433.1,0.2048]
[1750884769511,10.77337366,2433.5,2433.1,0.2048]
[1750884770040,6.663,2433.5,2433.2,4.10980045]
[1750884770829,6.663,2433.5,2433.1,4.31470603]
[1750884771133,1.714,2433.7,2433.2,0.7854]
[1750884771335,16.526,2433.9,2433.6,4.10902001]
[1750884771534,16.7308,2433.9,2433.7,4.10896377]
[1750884772202,16.7308,2433.9,2433.6,4.10898436]
[1750884772407,16.7308,2433.9,2433.7,4.10893739]
[1750884772808,16.7308,2433.9,2433.5,0.7854]
[1750884773033,4.10880107,2433.8,2433.5,0.7854]
[1750884773223,4.10898393,2433.7,2433.4,0.2048]
[1750884773421,4.10931754,2433.5,2433.1,0.2048]
[1750884773633,10.9759879,2433.6,2433.1,4.31477961]
[1750884773830,6.8668,2433.6,2433.1,4.31477961]
[1750884774031,6.8668,2433.6,2433.2,4.10972775]
[1750884774242,10.97594049,2433.6,2433.1,0.2048]
[1750884774407,4.10947911,2433.4,2433.1,0.2048]
[1750884775941,4.10938347,2433.5,2433.1,0.2048]
[1750884776248,10.97594049,2433.6,2433.1,4.82481428]
[1750884776249,10.97602381,2433.6,2433.1,4.82481428]
[1750884776547,4.10976431,2433.3,2432.9,10.7854]
[1750884776732,4.10998178,2433.2,2432.9,0.2048]
[1750884776943,4.31471683,2433.2,2432.8,0.2048]
[1750884777124,4.31487043,2433.1,2432.6,4.31560489]
[1750884777452,4.31487043,2433.1,2432.6,0.2048]
[1750884777453,6.661,2433.0,2432.6,0.2048]
[1750884777657,6.661,2433.0,2432.3,0.8052]
[1750884777658,16.90227674,2433.0,2432.3,0.8052]
[1750884777936,8.374,2433.0,2432.5,4.11087704]
[1750884778141,0.2048,2432.9,2432.5,4.31567704]
[1750884778435,6.661,2433.1,2432.8,4.11035832]
[1750884778624,6.661,2433.1,2432.9,4.11030474]
[1750884778855,0.2048,2433.2,2433.1,4.10998314]
[1750884779022,6.661,2433.2,2433.0,4.31483161]
[1750884779431,4.10974818,2433.3,2433.0,0.2048]
[1750884779632,0.2048,2433.2,2433.0,4.11011561]
[1750884779835,0.2048,2433.4,2432.9,0.2048]
[1750884780036,6.661,2433.4,2432.9,4.11032101]
[1750884780262,6.661,2433.4,2433.2,4.10965528]
[1750884780433,6.661,2433.4,2433.3,4.10964533]
[1750884780750,0.2048,2433.5,2433.3,4.10955726]
[1750884780949,0.2048,2433.5,2433.2,4.90405471]
[1750884781625,1.714,2433.6,2433.4,4.10933484]
[1750884781861,1.714,2433.6,2433.4,0.90132802]
[1750884782064,0.2048,2433.8,2433.6,4.10909752]
[1750884782234,0.2048,2433.8,2433.5,4.10930758]
[1750884783244,0.2048,2433.8,2433.5,4.10922084]
[1750884783627,0.2048,2433.8,2433.4,5.01073483]
[1750884783832,0.2048,2433.8,2433.6,4.10913188]
[1750884784559,0.2048,2433.8,2433.5,0.52155348]
[1750884784866,4.31367925,2433.8,2433.3,4.31439472]
[1750884785540,0.2048,2433.8,2433.3,0.2048]